bitfinex/quotes_BTCUSD_20250127
["timestamp","ask_amount","ask_price","bid_price","bid_amount"]
[1737952707218,0.149075,100620.0,100610.0,0.00434114]
[1737952707499,0.39180489,100620.0,100610.0,0.00434114]
[1737952707704,0.3930642,100620.0,100610.0,0.00434114]
[1737952708105,0.30523691,100620.0,100610.0,0.00434114]
[1737952708246,0.4125842,100620.0,100610.0,0.00434114]
[1737952708454,0.1,100610.0,100600.0,0.10871346]
[1737952708654,0.10223928,100610.0,100600.0,0.25781846]
[1737952708884,0.16017928,100610.0,100600.0,0.25781846]
[1737952709481,0.06017928,100610.0,100600.0,0.25781846]
[1737952709697,0.06017928,100610.0,100600.0,0.11171346]
[1737952709698,0.66557862,100610.0,100600.0,0.11171346]
[1737952709902,0.6929975,100610.0,100600.0,0.11171346]
[1737952710359,0.89685669,100610.0,100600.0,0.11171346]
[1737952710819,0.90641669,100610.0,100600.0,0.11171346]
[1737952711329,0.7025575,100610.0,100600.0,0.11271346]
[1737952711569,0.7025575,100610.0,100600.0,0.10971346]
[1737952711804,0.7065575,100610.0,100600.0,0.10871346]
[1737952711983,0.7025575,100610.0,100600.0,0.10871346]
[1737952712122,0.67243788,100610.0,100600.0,0.10871346]
[1737952712330,0.67943788,100610.0,100600.0,0.10971346]
[1737952712522,0.69765381,100610.0,100600.0,0.10871346]
[1737952712729,0.70765381,100610.0,100600.0,0.10871346]
[1737952712973,0.71265381,100610.0,100600.0,0.10871346]
[1737952713574,0.71265381,100610.0,100600.0,0.10885516]
[1737952715537,0.69373779,100610.0,100600.0,0.10885516]
[1737952715738,0.7188411,100610.0,100600.0,0.10885516]
[1737952715923,0.7088411,100610.0,100600.0,0.10885516]
[1737952716419,0.59373779,100610.0,100600.0,0.10885516]
[1737952717005,0.6188411,100610.0,100600.0,0.10885516]
[1737952717323,0.6188411,100610.0,100590.0,0.14931929]
[1737952717324,0.387005,100600.0,100590.0,0.00020829]
[1737952717519,0.55895521,100600.0,100590.0,0.00020829]
[1737952717683,0.39800322,100600.0,100590.0,0.00020829]
[1737952718095,0.16999822,100600.0,100590.0,0.14932829]
[1737952718276,0.03051822,100600.0,100590.0,0.14932829]
[1737952718487,0.13051822,100600.0,100590.0,0.14932829]
[1737952718693,0.13866614,100600.0,100590.0,0.15032829]
[1737952718907,0.13266614,100600.0,100590.0,0.14932829]
[1737952719252,0.13066614,100600.0,100590.0,0.14932829]
[1737952719467,0.13066614,100600.0,100590.0,0.24667558]
[1737952719666,0.12114614,100600.0,100590.0,0.24667558]
[1737952719889,0.13062614,100600.0,100590.0,0.14932829]
[1737952722303,0.53053348,100600.0,100590.0,0.5106394]
[1737952722507,0.52105348,100600.0,100590.0,0.5106394]
[1737952724472,0.52105348,100600.0,100590.0,0.5116394]
[1737952724871,0.52105348,100600.0,100590.0,0.5136394]
[1737952725069,0.52105348,100600.0,100590.0,0.5106394]
[1737952725269,0.52105348,100600.0,100590.0,0.62660322]
[1737952725498,0.52205348,100600.0,100590.0,0.62974502]
[1737952725748,0.52205348,100600.0,100590.0,0.5157812]
[1737952726035,0.52205348,100600.0,100590.0,0.62974502]
[1737952726264,0.36205943,100600.0,100590.0,1.35082402]
[1737952726480,0.00307939,100600.0,100590.0,1.39168646]
[1737952726689,0.00029758,100650.0,100640.0,0.149046]
[1737952726908,0.00029758,100650.0,100640.0,0.39639329]
[1737952727034,0.00329483,100650.0,100640.0,0.39639329]
[1737952728483,0.00329483,100650.0,100640.0,0.39739329]
[1737952728658,0.00329483,100650.0,100640.0,0.40039329]
[1737952729420,0.00329483,100650.0,100640.0,0.62316729]
[1737952730021,0.00329483,100650.0,100640.0,0.9954735]
[1737952730444,0.0004464,100650.0,100640.0,1.0184735]
[1737952730661,4e-07,100650.0,100640.0,1.0384735]
[1737952730857,4e-07,100650.0,100640.0,0.8146995]
[1737952731281,0.00284883,100650.0,100640.0,0.78484421]
[1737952731432,0.00284883,100650.0,100640.0,3.94754621]
[1737952731641,0.00284883,100650.0,100640.0,3.94654621]
[1737952731836,0.0010004,100650.0,100640.0,3.95254621]
[1737952732119,4e-07,100650.0,100640.0,3.95937108]
[1737952732284,4e-07,100650.0,100640.0,0.81366908]
[1737952732439,4e-07,100650.0,100640.0,0.64994362]
[1737952732657,0.00289208,100650.0,100640.0,0.64994362]
[1737952732865,0.00289208,100650.0,100640.0,4.53493662]
[1737952733133,0.00289208,100650.0,100640.0,4.50411175]
[1737952733349,4e-07,100650.0,100640.0,4.21307377]
[1737952733690,4e-07,100650.0,100640.0,0.80002323]
[1737952733900,0.00029758,100660.0,100640.0,0.80002323]
[1737952733901,0.00029758,100670.0,100660.0,0.149016]
[1737952734136,0.00029758,100670.0,100660.0,0.5875828]
[1737952734354,0.00029758,100670.0,100660.0,0.43985734]
[1737952734355,2.6e-07,100670.0,100660.0,0.43985734]
[1737952734571,0.00265073,100670.0,100660.0,0.43985734]
[1737952735342,0.00746831,100710.0,100700.0,0.148957]
[1737952735558,0.377727,100720.0,100700.0,0.148957]
[1737952735771,0.1,100700.0,100690.0,0.148963]
[1737952736609,0.1001488,100700.0,100690.0,0.148963]
[1737952736806,0.10264385,100700.0,100690.0,0.148963]
[1737952736982,0.10264385,100700.0,100690.0,0.24631029]
[1737952736983,0.00264385,100700.0,100690.0,0.24631029]
[1737952737783,0.22879114,100700.0,100650.0,0.17072546]
[1737952737980,0.22879114,100700.0,100660.0,0.149016]
[1737952737981,0.149002,100670.0,100660.0,0.149016]
[1737952738227,0.149016,100660.0,100650.0,0.149031]
[1737952738422,0.1,100650.0,100640.0,0.498596]
[1737952738628,0.1,100650.0,100640.0,0.59594329]
[1737952738828,0.00250179,100650.0,100640.0,0.59594329]
[1737952738999,0.02104179,100650.0,100640.0,0.59594329]
[1737952739464,0.02104179,100650.0,100640.0,0.59643734]
[1737952739675,0.02104179,100650.0,100640.0,0.7901628]
[1737952739881,0.02104179,100650.0,100640.0,0.96088826]
[1737952740005,0.02104179,100650.0,100640.0,1.1626498]
[1737952740424,0.02104179,100650.0,100640.0,0.7901628]
[1737952740642,0.02104179,100650.0,100640.0,0.59843734]
[1737952740846,0.02104179,100650.0,100640.0,0.7691628]
[1737952741040,0.02204179,100650.0,100640.0,0.7731628]
[1737952741441,0.02204179,100650.0,100640.0,0.7991628]
[1737952741853,0.02204179,100650.0,100640.0,0.7961628]
[1737952742098,0.0482,100690.0,100680.0,0.298986]
[1737952742314,0.249031,100650.0,100640.0,0.00884]
[1737952742532,0.48795646,100650.0,100640.0,0.00884]
[1737952742745,0.86830375,100650.0,100640.0,0.00884]
[1737952742952,0.283,100640.0,100630.0,0.08783238]
[1737952743166,0.66803329,100640.0,100630.0,0.08783238]
[1737952743417,0.66803329,100640.0,100600.0,0.0001418]
[1737952743418,0.1,100610.0,100600.0,0.0001418]
[1737952743620,0.1,100610.0,100600.0,0.19944085]
[1737952743827,0.1394,100610.0,100600.0,0.19944085]
[1737952744444,0.28849,100610.0,100600.0,0.00063585]
[1737952744650,0.28849,100610.0,100600.0,0.00163585]
[1737952745063,0.28849,100610.0,100600.0,0.00363585]
[1737952745983,0.28849,100610.0,100600.0,0.15274085]
[1737952746190,0.1394,100610.0,100600.0,0.15274085]
[1737952746602,0.0394,100610.0,100600.0,0.40008814]
[1737952747518,0.0394,100610.0,100600.0,0.30274085]
[1737952747730,0.28849,100610.0,100600.0,0.30274085]
[1737952747928,0.1394,100610.0,100600.0,0.30274085]
[1737952748547,0.28849,100610.0,100600.0,0.15274085]
[1737952748757,0.36629,100610.0,100600.0,0.00363585]
[1737952749181,0.36629,100610.0,100600.0,0.15274085]
[1737952749384,0.78196275,100610.0,100600.0,0.00363585]
[1737952749585,0.63732704,100610.0,100600.0,0.00363585]
[1737952749783,0.65586704,100610.0,100600.0,0.00363585]
[1737952750038,0.55851975,100610.0,100600.0,0.00263585]
[1737952750238,0.55951975,100610.0,100600.0,0.00263585]
[1737952750799,0.0681,100610.0,100600.0,0.15174085]
[1737952751039,0.1711,100610.0,100600.0,0.15174085]
[1737952751226,0.1711,100610.0,100600.0,0.14974085]
[1737952751750,0.15994,100610.0,100600.0,0.15074085]
[1737952751922,0.1691,100610.0,100600.0,0.14974085]
[1737952752322,0.1711,100610.0,100600.0,0.14974085]
[1737952753934,0.1701,100610.0,100600.0,0.14974085]
[1737952754456,0.77369987,100610.0,100600.0,0.00063585]
[1737952754668,0.53993729,100610.0,100600.0,0.00263585]
[1737952754872,0.295635,100580.0,100570.0,0.001]
[1737952755083,0.49298229,100580.0,100570.0,0.001]
[1737952755288,0.445635,100580.0,100570.0,0.001]
[1737952755481,0.58452229,100580.0,100570.0,0.001]
[1737952755733,0.64040657,100580.0,100570.0,0.001]
[1737952755883,0.88663203,100580.0,100570.0,0.001]
[1737952756082,0.71990657,100580.0,100570.0,0.001]
[1737952756381,0.6914063,100580.0,100570.0,0.001]
[1737952756599,0.56002229,100580.0,100570.0,0.001]
[1737952757194,1.04512229,100580.0,100570.0,0.001]
[1737952757405,1.24023176,100580.0,100570.0,0.001]
[1737952757632,1.0925063,100580.0,100570.0,0.001]
[1737952757864,1.2893987,100580.0,100570.0,0.001]
[1737952758071,1.2863987,100580.0,100570.0,0.001]
[1737952758220,1.2893987,100580.0,100570.0,0.001]
[1737952758469,1.2763987,100580.0,100570.0,0.001]
[1737952758666,1.07428923,100580.0,100570.0,0.00091258]
[1737952758883,1.08128923,100580.0,100570.0,0.00191258]
[1737952759075,1.14512229,100580.0,100570.0,0.00091258]
[1737952759316,1.14512229,100580.0,100570.0,0.00082515]
[1737952759458,1.07662229,100580.0,100570.0,0.15097415]
[1737952759969,1.03012229,100580.0,100570.0,0.15097415]
[1737952760200,1.01312229,100580.0,100570.0,0.14997415]
[1737952760736,1.01912229,100580.0,100570.0,0.14997415]
[1737952760871,0.77264,100580.0,100570.0,0.14997415]
[1737952761141,0.77064,100580.0,100570.0,0.14997415]
[1737952761349,0.76008,100580.0,100570.0,0.14997415]
[1737952761806,0.77192,100580.0,100570.0,0.14997415]
[1737952762049,0.76792,100580.0,100570.0,0.14997415]
[1737952762288,0.76888,100580.0,100570.0,0.14997415]
[1737952762901,0.76888,100580.0,100570.0,0.15011595]
[1737952763099,0.76917779,100580.0,100570.0,0.15011595]
[1737952763296,0.55737779,100580.0,100570.0,0.15011595]
[1737952763467,0.55737779,100580.0,100570.0,0.47084141]
[1737952763677,0.55737779,100580.0,100570.0,0.30011595]
[1737952765978,0.55637779,100580.0,100570.0,0.30011595]
[1737952766370,0.55637779,100580.0,100570.0,0.5731887]
[1737952766570,0.55537779,100580.0,100570.0,0.6513887]
[1737952766775,0.51597779,100580.0,100570.0,0.6523887]
[1737952767538,0.51597779,100580.0,100570.0,0.6513887]
[1737952767805,0.51597779,100580.0,100570.0,0.6533887]
[1737952768588,0.51597779,100580.0,100570.0,0.6483887]
[1737952769534,0.51697779,100580.0,100570.0,0.6563887]
[1737952772377,0.51697779,100580.0,100570.0,0.31011595]
[1737952773417,0.51697779,100580.0,100570.0,0.5781887]
[1737952775820,0.51697779,100580.0,100570.0,0.60902731]
[1737952776963,0.51697779,100580.0,100570.0,0.70562731]
[1737952778895,0.51697779,100580.0,100570.0,0.68562731]
[1737952786603,0.51697779,100580.0,100570.0,0.56707432]
[1737952786816,0.51697779,100580.0,100570.0,0.68480216]
[1737952787300,0.51697779,100580.0,100570.0,0.4374767]
[1737952787526,0.99246008,100580.0,100570.0,0.0101418]
[1737952788564,0.99246008,100580.0,100570.0,0.0081418]
[1737952788817,0.99346008,100580.0,100570.0,0.0081418]
[1737952789029,0.99246008,100580.0,100570.0,0.0001418]
[1737952789264,0.99346008,100580.0,100570.0,0.0001418]
[1737952790689,1.00346008,100580.0,100570.0,0.0001418]
[1737952791485,0.99346008,100580.0,100570.0,0.0001418]
[1737952791841,0.99246008,100580.0,100570.0,0.0001418]
[1737952792048,0.90956008,100580.0,100570.0,0.0001418]
[1737952792254,0.91356008,100580.0,100570.0,0.0001418]
[1737952792458,0.92108008,100580.0,100570.0,0.0001418]
[1737952792686,0.92708008,100580.0,100570.0,0.1492908]
[1737952792915,0.78263279,100580.0,100570.0,0.1492908]
[1737952793135,0.51797779,100580.0,100570.0,0.1492908]
[1737952793337,0.52197779,100580.0,100570.0,0.1492908]
[1737952793539,0.52197779,100580.0,100570.0,0.24663809]
[1737952793797,0.51797779,100580.0,100570.0,0.24663809]
[1737952794372,0.61797779,100580.0,100570.0,0.1492908]
[1737952794779,0.66511279,100580.0,100570.0,0.1492908]
[1737952794977,0.51597779,100580.0,100570.0,0.1492908]
[1737952795197,0.61697779,100580.0,100570.0,0.1492908]
[1737952795354,0.51697779,100580.0,100570.0,0.1492908]
[1737952795718,0.51797779,100580.0,100570.0,0.1492908]
[1737952796822,0.66711279,100580.0,100570.0,0.1492908]
[1737952797024,0.66711279,100580.0,100570.0,0.14919953]
[1737952798605,0.66711279,100580.0,100570.0,0.14911372]
[1737952800025,0.51797779,100580.0,100570.0,0.14911372]
[1737952801035,0.1,100570.0,100560.0,0.68127284]
[1737952801307,0.94487931,100570.0,100560.0,0.38211484]
[1737952801540,0.90157629,100570.0,100560.0,0.38211484]
[1737952801753,0.91345629,100570.0,100560.0,0.38211484]
[1737952801972,0.81345629,100570.0,100560.0,0.38211484]
[1737952802182,0.91345629,100570.0,100560.0,0.38211484]
[1737952802402,0.91395156,100570.0,100560.0,0.38211484]
[1737952802676,0.91395156,100570.0,100560.0,0.38411484]
[1737952802950,0.66745527,100570.0,100560.0,0.53327884]
[1737952803191,0.81660427,100570.0,100560.0,0.53327884]
[1737952803410,0.81660427,100570.0,100560.0,0.53127884]
[1737952803657,0.66745527,100570.0,100560.0,0.53127884]
[1737952803902,0.66845527,100570.0,100560.0,0.53127884]
[1737952804149,0.66745527,100570.0,100560.0,0.53127884]
[1737952804413,0.66845527,100570.0,100560.0,0.53127884]
[1737952804651,0.55657527,100570.0,100560.0,0.53127884]
[1737952804922,0.55657527,100570.0,100560.0,0.89266569]
[1737952805168,0.51717527,100570.0,100560.0,1.13670525]
[1737952805395,0.51817527,100570.0,100560.0,1.02266569]
[1737952805578,0.51817527,100570.0,100560.0,1.05360242]
[1737952805787,0.51717527,100570.0,100560.0,1.05360242]
[1737952806121,0.51617527,100570.0,100560.0,1.16764198]
[1737952806358,0.51617527,100570.0,100560.0,1.22064198]
[1737952806359,0.41251436,100570.0,100560.0,1.22064198]
[1737952806577,0.41251436,100570.0,100560.0,1.33642896]
[1737952806799,0.41251436,100570.0,100560.0,1.33442896]
[1737952807069,0.00029779,100580.0,100570.0,0.452149]
[1737952807226,0.00029779,100580.0,100570.0,0.72057816]
[1737952807642,0.00029779,100580.0,100570.0,0.69757816]
[1737952808348,0.1,100630.0,100590.0,0.0831]
[1737952808546,0.38588646,100650.0,100640.0,0.299046]
[1737952808547,0.08717146,100650.0,100640.0,0.299046]
[1737952808719,0.08717146,100650.0,100640.0,0.56732634]
[1737952809903,0.08717146,100650.0,100640.0,0.73825939]
[1737952810107,0.08717146,100650.0,100640.0,0.56732634]
[1737952810962,0.00029758,100650.0,100640.0,0.57132634]
[1737952811353,0.00029758,100650.0,100640.0,0.74425939]
[1737952811771,0.01883758,100650.0,100640.0,0.74425939]
[1737952812235,0.0210427,100650.0,100640.0,0.74425939]
[1737952812442,0.0210427,100650.0,100640.0,0.75431364]
[1737952812822,0.0210427,100650.0,100640.0,0.79731364]
[1737952813023,0.0210427,100650.0,100640.0,1.67079464]
[1737952813185,0.0210427,100650.0,100640.0,1.75389464]
[1737952813388,0.01883758,100650.0,100640.0,1.75389464]
[1737952813840,0.0394,100670.0,100650.0,0.02]
[1737952814083,0.000298,100690.0,100680.0,0.148986]
[1737952814299,0.000298,100690.0,100680.0,0.67129939]
[1737952814517,0.000298,100690.0,100680.0,1.38589939]
[1737952814936,0.0004962,100690.0,100680.0,1.66715264]
[1737952815143,0.0004962,100690.0,100680.0,1.55919639]
[1737952815277,0.0004962,100690.0,100680.0,1.40589939]
[1737952815891,0.0004962,100690.0,100680.0,2.26652544]
[1737952816600,0.244118,100750.0,100730.0,0.347452]
[1737952816775,0.39315184,100750.0,100730.0,0.51838505]
[1737952816973,0.1501389,100740.0,100730.0,0.15]
[1737952817173,0.148898,100740.0,100730.0,0.15]
[1737952818370,0.1,100730.0,100710.0,0.347506]
[1737952818567,0.248914,100730.0,100720.0,0.15]
[1737952819235,0.248914,100730.0,100700.0,0.15]
[1737952819236,0.44752,100720.0,100700.0,0.15]
[1737952819429,0.1,100720.0,100700.0,0.39629429]
[1737952819759,0.1,100720.0,100710.0,0.148942]
[1737952820181,0.248918,100730.0,100710.0,0.148942]
[1737952820390,0.1,100730.0,100710.0,0.546112]
[1737952820597,0.001,100720.0,100710.0,0.148942]
[1737952821026,0.102,100720.0,100710.0,0.298942]
[1737952821456,0.1,100720.0,100710.0,0.298942]
[1737952822460,0.1,100720.0,100710.0,0.39628929]
[1737952822697,0.1394,100720.0,100710.0,0.298942]
[1737952822904,0.148942,100710.0,100700.0,0.15]
[1737952823088,0.48721136,100720.0,100700.0,0.298956]
[1737952823297,0.48921136,100720.0,100700.0,0.497565]
[1737952823696,0.48821136,100720.0,100700.0,0.497565]
[1737952823906,0.48721136,100720.0,100700.0,0.298956]
[1737952824141,0.28963936,100720.0,100700.0,0.497565]
[1737952824369,0.28978812,100720.0,100700.0,0.497565]
[1737952824597,0.14084612,100720.0,100710.0,0.148942]
[1737952824799,0.03984612,100720.0,100710.0,0.148942]
[1737952824982,0.05938612,100720.0,100710.0,0.24628929]
[1737952825184,0.05938612,100720.0,100710.0,0.24620504]
[1737952825634,0.01998612,100720.0,100710.0,0.41713809]
[1737952826053,0.01998612,100720.0,100710.0,0.98173809]
[1737952826257,0.01998612,100720.0,100710.0,1.13173809]
[1737952826476,0.01998612,100720.0,100710.0,0.76107114]
[1737952826681,0.000298,100750.0,100740.0,0.298898]
[1737952826895,0.100298,100750.0,100740.0,0.39624529]
[1737952827090,0.139698,100750.0,100740.0,0.39624529]
[1737952828550,0.140698,100750.0,100740.0,0.39624529]
[1737952829379,0.159238,100750.0,100740.0,0.39624529]
[1737952829704,0.160238,100750.0,100740.0,0.39624529]
[1737952829856,0.159238,100750.0,100740.0,0.39624529]
[1737952830298,0.158238,100750.0,100740.0,0.39624529]
[1737952830583,0.158238,100750.0,100740.0,0.39824529]
[1737952830798,0.158238,100750.0,100740.0,0.56917834]
[1737952831003,0.058238,100750.0,100740.0,0.56917834]
[1737952831223,0.058238,100750.0,100740.0,1.13377834]
[1737952831373,0.018838,100750.0,100740.0,1.13377834]
[1737952831586,0.018838,100750.0,100740.0,1.11077834]
[1737952831985,0.02157087,100750.0,100740.0,1.11077834]
[1737952832841,0.02157087,100750.0,100740.0,1.11177834]
[1737952833253,0.02157087,100750.0,100740.0,1.11077834]
[1737952833394,0.02157087,100750.0,100740.0,1.10877834]
[1737952833603,0.02157087,100750.0,100740.0,1.11377834]
[1737952834248,0.02157087,100750.0,100740.0,0.94284529]
[1737952834446,0.02157087,100750.0,100740.0,0.40124529]
[1737952836096,0.02157087,100750.0,100740.0,0.004]
[1737952836097,0.17169459,100750.0,100740.0,0.004]
[1737952836312,0.17269474,100750.0,100740.0,0.004]
[1737952836506,0.18389474,100750.0,100740.0,0.004]
[1737952836735,0.82859387,100750.0,100720.0,0.347472]
[1737952836936,0.63007087,100750.0,100740.0,0.001]
[1737952837141,0.63007087,100750.0,100740.0,0.149898]
[1737952837352,0.62907087,100750.0,100740.0,0.148898]
[1737952837559,0.63007087,100750.0,100740.0,0.148898]
[1737952837753,0.63207087,100750.0,100740.0,0.148898]
[1737952837962,0.97946487,100750.0,100730.0,0.64332929]
[1737952838334,0.0394,100740.0,100730.0,0.29588429]
[1737952838549,0.53823582,100740.0,100730.0,0.29588429]
[1737952838757,0.80568082,100740.0,100720.0,0.546039]
[1737952838994,0.80568082,100740.0,100720.0,0.44482529]
[1737952839218,0.80568082,100740.0,100700.0,0.15]
[1737952839219,0.447521,100720.0,100700.0,0.15]
[1737952839451,0.00124128,100710.0,100700.0,0.15014876]
[1737952839671,0.51761295,100710.0,100700.0,0.29910576]
[1737952839884,0.66655495,100710.0,100700.0,0.15014876]
[1737952840092,0.70595495,100710.0,100700.0,0.00014876]
[1737952841656,0.70795495,100710.0,100700.0,0.00014876]
[1737952842495,0.80795495,100710.0,100700.0,0.00014876]
[1737952842901,0.80895495,100710.0,100700.0,0.00014876]
[1737952844447,0.56001295,100710.0,100700.0,0.14910576]
[1737952844658,0.57125295,100710.0,100700.0,0.14910576]
[1737952845509,0.57125295,100710.0,100700.0,0.24645305]
[1737952845710,0.56001295,100710.0,100700.0,0.24645305]
[1737952845864,0.66001295,100710.0,100700.0,0.24645305]
[1737952846079,0.66001295,100710.0,100700.0,0.27743952]
[1737952847058,0.65737999,100710.0,100700.0,0.27743952]
[1737952847264,0.55993003,100710.0,100700.0,0.42743952]
[1737952848317,0.80887203,100710.0,100700.0,0.27848252]
[1737952848537,0.80887203,100710.0,100700.0,0.18113523]
[1737952848741,0.80887203,100710.0,100700.0,0.15029016]
[1737952849422,0.70887203,100710.0,100700.0,0.00029016]
[1737952850906,0.65993003,100710.0,100700.0,0.24659445]
[1737952851313,0.65993003,100710.0,100700.0,0.2774612]
[1737952851688,0.65993003,100710.0,100700.0,0.24659445]
[1737952851898,0.65993003,100710.0,100700.0,0.27745913]
[1737952852100,0.55893003,100710.0,100700.0,0.27745913]
[1737952852420,0.55793003,100710.0,100700.0,0.27745913]
[1737952853067,0.55693003,100710.0,100700.0,0.27745913]
[1737952853664,0.55693003,100710.0,100700.0,0.24659445]
[1737952853870,0.55693003,100710.0,100700.0,0.24859445]
[1737952855415,0.55793003,100710.0,100700.0,0.24859445]
[1737952855605,0.55793003,100710.0,100700.0,0.24659445]
[1737952857080,0.55893003,100710.0,100700.0,0.24659445]
[1737952857435,0.55922697,100710.0,100700.0,0.24659445]
[1737952857641,0.1231,100680.0,100630.0,0.28618329]
[1737952857844,0.347729,100660.0,100640.0,0.24734729]
[1737952858161,0.01526809,100650.0,100640.0,0.299046]
[1737952858325,0.0534262,100650.0,100640.0,0.299046]
[1737952858539,0.5497262,100650.0,100640.0,0.299046]
[1737952859203,0.5682662,100650.0,100640.0,0.299046]
[1737952859354,0.5682662,100650.0,100640.0,0.29954219]
[1737952860707,0.7913662,100650.0,100640.0,0.29954219]
[1737952860909,0.7913662,100650.0,100640.0,0.15049619]
[1737952860910,0.9403972,100650.0,100640.0,0.15049619]
[1737952861215,0.9403972,100650.0,100640.0,0.15249619]
[1737952862048,1.03774449,100650.0,100640.0,0.00249619]
[1737952862259,1.3599268,100650.0,100640.0,0.00249619]
[1737952862744,1.3609268,100650.0,100640.0,0.00249619]
[1737952862961,1.4539268,100650.0,100640.0,0.00249619]
[1737952863175,1.47904574,100650.0,100640.0,0.00249619]
[1737952863624,1.47904574,100650.0,100640.0,0.00049619]
[1737952863853,1.48004574,100650.0,100640.0,0.00049619]
[1737952864264,1.47804574,100650.0,100640.0,0.00049619]
[1737952864519,1.38769845,100650.0,100640.0,0.00149619]
[1737952864716,1.39069845,100650.0,100640.0,0.00149619]
[1737952864951,1.36557951,100650.0,100640.0,0.00149619]
[1737952865170,1.36557951,100650.0,100590.0,0.5468824]
[1737952865171,0.21,100640.0,100590.0,0.5468824]
[1737952865376,0.407605,100600.0,100590.0,0.00029022]
[1737952865580,1.00398611,100600.0,100590.0,0.00029022]
[1737952865782,1.07423783,100600.0,100590.0,0.00029022]
[1737952866193,1.10562605,100600.0,100590.0,0.00029022]
[1737952866611,1.2950991,100600.0,100590.0,0.00029022]
[1737952866935,1.4797991,100600.0,100590.0,0.00129022]
[1737952867314,1.4927991,100600.0,100590.0,0.00029022]
[1737952867517,1.4727991,100600.0,100590.0,0.00129022]
[1737952867766,1.4797216,100600.0,100590.0,0.00129022]
[1737952867946,1.4727216,100600.0,100590.0,0.00029022]
[1737952868317,1.5157216,100600.0,100590.0,0.00129022]
[1737952868516,1.00226447,100600.0,100590.0,0.00129022]
[1737952868718,0.77881718,100600.0,100590.0,0.00129022]
[1737952868917,0.58157382,100600.0,100590.0,0.00129022]
[1737952869140,0.73095882,100600.0,100590.0,0.15041022]
[1737952869343,0.58185382,100600.0,100590.0,0.15041022]
[1737952869601,0.68185382,100600.0,100590.0,0.15041022]
[1737952869801,0.68185382,100600.0,100590.0,0.00129022]
[1737952869802,0.83095882,100600.0,100590.0,0.00129022]
[1737952870012,0.82195882,100600.0,100590.0,0.00029022]
[1737952870424,0.82195882,100600.0,100590.0,0.14941022]
[1737952870641,0.56097382,100600.0,100590.0,0.39675751]
[1737952870856,0.56497382,100600.0,100590.0,0.64589056]
[1737952871051,0.56497382,100600.0,100590.0,0.47495751]
[1737952871254,0.56097382,100600.0,100590.0,0.47495751]
[1737952871452,0.56097382,100600.0,100590.0,0.39675751]
[1737952871654,0.55897382,100600.0,100590.0,0.39675751]
[1737952871902,0.55897382,100600.0,100590.0,0.29941022]
[1737952872144,0.70807882,100600.0,100590.0,0.15029022]
[1737952872340,0.70607882,100600.0,100590.0,0.15029022]
[1737952872560,0.70607882,100600.0,100590.0,0.29941022]
[1737952872906,0.55697382,100600.0,100590.0,0.29941022]
[1737952873283,0.66097382,100600.0,100590.0,0.29941022]
[1737952873601,0.66197382,100600.0,100590.0,0.29941022]
[1737952874069,0.65797382,100600.0,100590.0,0.29941022]
[1737952874237,0.65897382,100600.0,100590.0,0.29941022]
[1737952876041,0.65897382,100600.0,100590.0,0.39675751]
[1737952876244,0.55897382,100600.0,100590.0,0.39675751]
[1737952876458,0.65897382,100600.0,100590.0,0.29441022]
[1737952876926,0.65797382,100600.0,100590.0,0.29441022]
[1737952877134,0.65697382,100600.0,100590.0,0.29541022]
[1737952877335,0.55697382,100600.0,100590.0,0.39275751]
[1737952877553,0.55697382,100600.0,100590.0,0.39575751]
[1737952877759,0.87701187,100600.0,100590.0,0.004]
[1737952877966,0.97435916,100600.0,100590.0,0.004]
[1737952878542,1.00735916,100600.0,100590.0,0.004]
[1737952878746,1.032006,100600.0,100590.0,0.004]
[1737952879434,1.05547965,100600.0,100590.0,0.004]
[1737952879641,0.2,100590.0,100580.0,0.0001414]
[1737952879895,1.13992083,100590.0,100580.0,0.00028932]
[1737952880143,1.16051993,100590.0,100580.0,0.00028932]
[1737952880874,1.33151993,100590.0,100580.0,0.00028932]
[1737952881378,1.33151993,100590.0,100580.0,0.00128932]
[1737952881379,0.91546639,100590.0,100580.0,0.00128932]
[1737952881676,0.87036639,100590.0,100580.0,0.00128932]
[1737952881915,0.87036639,100590.0,100580.0,0.15042432]
[1737952881916,0.5385391,100590.0,100580.0,0.15042432]
[1737952882396,0.5268991,100590.0,100580.0,0.56870466]
[1737952882638,0.5198991,100590.0,100580.0,0.56770466]
[1737952882883,0.5198991,100590.0,100580.0,0.59070466]
[1737952883132,0.527371,100590.0,100580.0,1.25820466]
[1737952883399,0.19139789,100590.0,100580.0,1.50796466]
[1737952883640,0.07643879,100590.0,100580.0,1.43166466]
[1737952883896,0.07443879,100590.0,100580.0,0.89006466]
[1737952884141,0.23607879,100590.0,100580.0,0.00028932]
[1737952884359,0.33701597,100590.0,100580.0,0.00828932]
[1737952884571,0.33701597,100590.0,100580.0,0.01783514]
[1737952884572,0.33601597,100590.0,100580.0,0.01783514]
[1737952884791,0.18689597,100590.0,100580.0,0.16997014]
[1737952884998,0.08689597,100590.0,100580.0,0.16997014]
[1737952885295,0.07437597,100590.0,100580.0,0.26431743]
[1737952885436,0.07437597,100590.0,100580.0,0.60825048]
[1737952885437,0.07537597,100590.0,100580.0,0.60825048]
[1737952886098,0.07537597,100590.0,100580.0,0.61725048]
[1737952886280,0.07637597,100590.0,100580.0,0.61725048]
[1737952886453,0.07537597,100590.0,100580.0,0.60825048]
[1737952886894,0.07437597,100590.0,100580.0,0.61025048]
[1737952887099,0.07537597,100590.0,100580.0,0.61025048]
[1737952887508,0.07537597,100590.0,100580.0,0.41631743]
[1737952887710,0.32473868,100590.0,100580.0,0.16983514]
[1737952887912,0.32349597,100590.0,100580.0,0.16983514]
[1737952888067,0.17437597,100590.0,100580.0,0.17083514]
[1737952888272,0.17437597,100590.0,100580.0,0.31997014]
[1737952888472,0.17437597,100590.0,100580.0,0.16983514]
[1737952888672,0.32349597,100590.0,100580.0,0.16983514]
[1737952888871,0.22349597,100590.0,100580.0,0.16983514]
[1737952889075,0.30079597,100590.0,100580.0,0.16983514]
[1737952889277,0.25167597,100590.0,100580.0,0.16983514]
[1737952889704,0.25167597,100590.0,100580.0,0.31697014]
[1737952889887,0.25167597,100590.0,100580.0,0.16783514]
[1737952890087,0.25267597,100590.0,100580.0,0.16783514]
[1737952890284,0.40179597,100590.0,100580.0,0.16783514]
[1737952891544,0.40179597,100590.0,100580.0,0.16787514]
[1737952892010,0.40179597,100590.0,100580.0,0.15032932]
[1737952893622,0.40179597,100590.0,100580.0,0.29946432]
[1737952893827,0.15267597,100590.0,100580.0,0.39681161]
[1737952893957,0.07637597,100590.0,100580.0,0.39681161]
[1737952894164,0.07637597,100590.0,100580.0,0.62163144]
[1737952894813,0.07537597,100590.0,100580.0,0.62163144]
[1737952894982,0.07437597,100590.0,100580.0,0.62263144]
[1737952895190,0.07437597,100590.0,100580.0,0.62463144]
[1737952895789,0.01472697,100590.0,100580.0,0.83397144]